fUST/lending_fUST_20250719
["ID","MTS","AMOUNT","RATE_DAILY","PERIOD"]
[373176645,1752891046411,-460.0,0.00018082,2]
[373176647,1752891046421,-1977.14,0.00018082,2]
[373176649,1752891046431,-460.0,0.00018082,2]
[373176651,1752891046444,-1102.41,0.00018082,2]
[373176653,1752891046454,-581.74503683,0.00018082,2]
[373176655,1752891046463,-460.0,0.00018082,2]
[373176657,1752891046473,-533.53,0.00018082,2]
[373176659,1752891046483,-552.61,0.00018082,2]
[373176661,1752891046493,-460.0,0.00018082,2]
[373176663,1752891046502,-1676.17,0.00018082,2]
[373176665,1752891046512,-467.12,0.00018082,2]
[373176667,1752891046521,-460.0,0.00018082,2]
[373176669,1752891046531,-460.0,0.00018082,2]
[373176671,1752891046541,-864.43,0.00018082,2]
[373176674,1752891046551,-460.0,0.00018082,2]
[373176675,1752891046560,-460.0,0.00018082,2]
[373176678,1752891046570,-1756.54,0.00018082,2]
[373176679,1752891046579,-460.0,0.00018082,2]
[373176681,1752891046589,-163.66966262,0.00018082,2]
[373176683,1752891046599,-1166.67,0.00018082,2]
[373176685,1752891046608,-460.0,0.00018082,2]
[373176687,1752891046617,-567.84357467,0.00018082,2]
[373176689,1752891046627,-460.0,0.00018082,2]
[373176691,1752891046636,-1238.02,0.00018082,2]
[373176693,1752891046647,-460.0,0.00018082,2]
[373176695,1752891046657,-460.0,0.00018082,2]
[373176697,1752891046666,-460.0,0.00018082,2]
[373176699,1752891046678,-460.0,0.00018082,2]
[373176701,1752891046690,-975.58,0.00018082,2]
[373176703,1752891046700,-684.43,0.00018082,2]
[373176705,1752891046709,-460.0,0.00018082,2]
[373176707,1752891046718,-460.0,0.00018082,2]
[373176709,1752891046728,-599.44956715,0.00018082,2]
[373176711,1752891046738,-460.0,0.00018082,2]
[373176713,1752891046748,-460.0,0.00018082,2]
[373176715,1752891046759,-463.54,0.00018082,2]
[373176717,1752891046768,-460.0,0.00018082,2]
[373176719,1752891046777,-460.0,0.00018082,2]
[373176721,1752891046787,-1345.1,0.00018082,2]
[373176723,1752891046797,-460.0,0.00018082,2]
[373176725,1752891046807,-1508.92,0.00018082,2]
[373176727,1752891046817,-460.0,0.00018082,2]
[373176729,1752891046826,-460.0,0.00018082,2]
[373176731,1752891046836,-460.0,0.00018082,2]
[373176733,1752891046846,-460.0,0.00018082,2]
[373176735,1752891046856,-1125.78,0.00018082,2]
[373176737,1752891046866,-1027.2,0.00018082,2]
[373176739,1752891046875,-460.0,0.00018082,2]
[373176741,1752891046885,-460.0,0.00018082,2]
[373176743,1752891046894,-460.0,0.00018082,2]
[373176745,1752891046904,-460.0,0.00018082,2]
[373176748,1752891046924,-460.0,0.00018082,2]
[373176750,1752891046935,-460.0,0.00018082,2]
[373176752,1752891046949,-3077.67,0.00018082,2]
[373176754,1752891046959,-660.48,0.00018082,2]
[373176756,1752891046969,-2276.00727322,0.00018141,2]
[373176758,1752891046979,-248.90404005,0.00018202,2]
[373176760,1752891046991,-1871.92179644,0.00018258,2]
[373176763,1752891047001,-460.0,0.00018356,2]
[373176765,1752891047010,-460.0,0.00018356,2]
[373176767,1752891047021,-460.0,0.00018356,2]
[373176769,1752891047031,-460.0,0.00018356,2]
[373176771,1752891047040,-460.0,0.00018356,2]
[373176773,1752891047050,-460.0,0.00018356,2]
[373176775,1752891047060,-460.0,0.00018356,2]
[373176777,1752891047070,-476.15220808,0.00018356,2]
[373176779,1752891047080,-460.0,0.00018356,2]
[373176780,1752891047090,-504.84849972,0.00018356,2]
[373176781,1752891047099,-460.0,0.00018356,2]
[373176782,1752891047109,-460.0,0.00018356,2]
[373176783,1752891047119,-460.0,0.00018356,2]
[373176784,1752891047128,-460.0,0.00018356,2]
[373176785,1752891047138,-460.0,0.00018356,2]
[373176786,1752891047147,-460.0,0.00018356,2]
[373176787,1752891047157,-460.0,0.00018356,2]
[373176788,1752891047167,-2770.43,0.00018356,2]
[373176789,1752891047176,-460.0,0.00018356,2]
[373176790,1752891047187,-1977.14,0.00018356,2]
[373176791,1752891047197,-460.0,0.00018356,2]
[373176792,1752891047207,-1102.41,0.00018356,2]
[373176793,1752891047216,-460.0,0.00018356,2]
[373176794,1752891047226,-533.53,0.00018356,2]
[373176795,1752891047235,-552.61,0.00018356,2]
[373176796,1752891047245,-460.0,0.00018356,2]
[373176797,1752891047255,-467.12,0.00018356,2]
[373176798,1752891047264,-1676.17,0.00018356,2]
[373176799,1752891047273,-460.0,0.00018356,2]
[373176800,1752891047283,-460.0,0.00018356,2]
[373176801,1752891047292,-864.43,0.00018356,2]
[373176802,1752891047302,-460.0,0.00018356,2]
[373176803,1752891047311,-460.0,0.00018356,2]
[373176804,1752891047321,-1756.54,0.00018356,2]
[373176805,1752891047330,-460.0,0.00018356,2]
[373176806,1752891047340,-1166.67,0.00018356,2]
[373176807,1752891047349,-460.0,0.00018356,2]
[373176808,1752891047359,-460.0,0.00018356,2]
[373176809,1752891047368,-1238.02,0.00018356,2]
[373176811,1752891047378,-460.0,0.00018356,2]
[373176813,1752891047388,-460.0,0.00018356,2]
[373176815,1752891047398,-460.0,0.00018356,2]
[373176817,1752891047407,-460.0,0.00018356,2]
[373176819,1752891047417,-975.58,0.00018356,2]
[373176821,1752891047426,-684.43,0.00018356,2]
[373176823,1752891047437,-460.0,0.00018356,2]
[373176825,1752891047446,-460.0,0.00018356,2]
[373176827,1752891047456,-471.97528881,0.00018356,2]
[373176829,1752891047466,-300.6123749,0.00018356,2]
[373176831,1752891047475,-463.54,0.00018356,2]
[373176833,1752891047485,-460.0,0.00018356,2]
[373176835,1752891047495,-460.0,0.00018356,2]
[373176837,1752891047504,-1345.1,0.00018356,2]
[373176839,1752891047514,-493.82104014,0.00018356,2]
[373176841,1752891047523,-1508.92,0.00018356,2]
[373176844,1752891047536,-460.0,0.00018356,2]
[373176846,1752891047545,-460.0,0.00018356,2]
[373176847,1752891047555,-460.0,0.00018356,2]
[373176850,1752891047565,-460.0,0.00018356,2]
[373176852,1752891047574,-1125.78,0.00018356,2]
[373176854,1752891047584,-1027.2,0.00018356,2]
[373176855,1752891047593,-460.0,0.00018356,2]
[373176858,1752891047604,-460.0,0.00018356,2]
[373176860,1752891047614,-460.0,0.00018356,2]
[373176862,1752891047623,-460.0,0.00018356,2]
[373176864,1752891047633,-460.0,0.00018356,2]
[373176866,1752891047643,-460.0,0.00018356,2]
[373176868,1752891047652,-3077.67,0.00018356,2]
[373176870,1752891047662,-660.48,0.00018356,2]
[373176872,1752891047671,-160.0,0.0001838,2]
[373176874,1752891047681,-160.0,0.0001838,2]
[373176876,1752891047691,-160.0,0.0001838,2]
[373176878,1752891047701,-160.0,0.0001838,2]
[373176880,1752891047711,-12612.80205064,0.0001838,2]
[373176882,1752891047721,-476.34170116,0.0001838,2]
[373176884,1752891047730,-160.0,0.0001838,2]
[373176886,1752891047740,-214.52603969,0.0001838,2]
[373176888,1752891047749,-525.83049785,0.0001838,2]
[373176890,1752891047765,-839.454303,0.0001838,2]
[373176892,1752891047776,-160.0,0.0001838,2]
[373176894,1752891047785,-215.67360783,0.0001838,2]
[373176896,1752891047795,-230.94145789,0.0001838,2]
[373176898,1752891047805,-160.0,0.0001838,2]
[373176900,1752891047825,-1008.02044078,0.0001843,2]
[373176902,1752891047834,-2276.00727322,0.00018452,2]
[373176904,1752891047844,-260.0,0.00018534,2]
[373176906,1752891047854,-473.78031822,0.0001863,2]
[373176907,1752891047864,-460.0,0.0001863,2]
[373176910,1752891047874,-460.0,0.0001863,2]
[373176912,1752891047884,-460.0,0.0001863,2]
[373176914,1752891047894,-460.0,0.0001863,2]
[373176916,1752891047904,-460.0,0.0001863,2]
[373176918,1752891047913,-460.0,0.0001863,2]
[373176920,1752891047922,-338.49858829,0.0001863,2]
[373176922,1752891047934,-257.76349841,0.0001863,2]
[373176924,1752891047946,-460.0,0.0001863,2]
[373176926,1752891047956,-460.0,0.0001863,2]
[373176928,1752891047966,-460.0,0.0001863,2]
[373176930,1752891047975,-460.0,0.0001863,2]
[373176932,1752891047985,-460.0,0.0001863,2]
[373176934,1752891047997,-2770.43,0.0001863,2]
[373176936,1752891048006,-460.0,0.0001863,2]
[373176938,1752891048017,-1977.14,0.0001863,2]
[373176940,1752891048027,-460.0,0.0001863,2]
[373176942,1752891048036,-1102.41,0.0001863,2]
[373176944,1752891048046,-460.0,0.0001863,2]
[373176946,1752891048056,-533.53,0.0001863,2]
[373176948,1752891048065,-552.61,0.0001863,2]
[373176950,1752891048075,-460.0,0.0001863,2]
[373176952,1752891048084,-467.12,0.0001863,2]
[373176954,1752891048094,-1676.17,0.0001863,2]
[373176956,1752891048103,-460.0,0.0001863,2]
[373176958,1752891048113,-460.0,0.0001863,2]
[373176960,1752891048122,-864.43,0.0001863,2]
[373176962,1752891048132,-460.0,0.0001863,2]
[373176964,1752891048141,-460.0,0.0001863,2]
[373176966,1752891048151,-1756.54,0.0001863,2]
[373176968,1752891048160,-460.0,0.0001863,2]
[373176970,1752891048171,-1166.67,0.0001863,2]
[373176972,1752891048181,-460.0,0.0001863,2]
[373176974,1752891048192,-460.0,0.0001863,2]
[373176976,1752891048202,-1238.02,0.0001863,2]
[373176978,1752891048213,-460.0,0.0001863,2]
[373176981,1752891048223,-460.0,0.0001863,2]
[373176983,1752891048232,-460.0,0.0001863,2]
[373176984,1752891048243,-460.0,0.0001863,2]
[373176987,1752891048254,-975.58,0.0001863,2]
[373176988,1752891048263,-684.43,0.0001863,2]
[373176991,1752891048273,-460.0,0.0001863,2]
[373176992,1752891048283,-460.0,0.0001863,2]
[373176994,1752891048293,-463.54,0.0001863,2]
[373176996,1752891048302,-460.0,0.0001863,2]
[373176998,1752891048312,-460.0,0.0001863,2]
[373177000,1752891048322,-1345.1,0.0001863,2]
[373177002,1752891048333,-1508.92,0.0001863,2]
[373177004,1752891048343,-460.0,0.0001863,2]
[373177006,1752891048353,-460.0,0.0001863,2]
[373177009,1752891048363,-460.0,0.0001863,2]
[373177010,1752891048373,-460.0,0.0001863,2]
[373177013,1752891048385,-1125.78,0.0001863,2]
[373177015,1752891048397,-1027.2,0.0001863,2]
[373177016,1752891048407,-460.0,0.0001863,2]
[373177018,1752891048417,-460.0,0.0001863,2]
[373177020,1752891048426,-460.0,0.0001863,2]
[373177022,1752891048438,-460.0,0.0001863,2]
[373177025,1752891048448,-460.0,0.0001863,2]
[373177027,1752891048458,-460.0,0.0001863,2]
[373177029,1752891048469,-3077.67,0.0001863,2]
[373177030,1752891048478,-660.48,0.0001863,2]
[373177033,1752891048488,-2276.00727322,0.00018762,2]
[373177035,1752891048498,-423.1383254,0.00018895,2]
[373177036,1752891048508,-1445.0674579,0.000189,2]
[373177038,1752891048517,-460.0,0.00018904,2]
[373177041,1752891048527,-460.0,0.00018904,2]
[373177042,1752891048536,-460.0,0.00018904,2]
[373177044,1752891048546,-460.0,0.00018904,2]
[373177047,1752891048556,-381.6047024,0.00018904,2]
[373177049,1752891048565,-554.86675325,0.00018904,2]
[373177051,1752891048575,-460.0,0.00018904,2]
[373177053,1752891048584,-460.0,0.00018904,2]
[373177055,1752891048594,-460.0,0.00018904,2]
[373177057,1752891048604,-460.0,0.00018904,2]
[373177058,1752891048614,-460.0,0.00018904,2]
[373177060,1752891048624,-2770.43,0.00018904,2]
[373177062,1752891048633,-460.0,0.00018904,2]
[373177064,1752891048643,-1977.14,0.00018904,2]
[373177066,1752891048652,-460.0,0.00018904,2]
[373177067,1752891048661,-1102.41,0.00018904,2]
[373177068,1752891048670,-460.0,0.00018904,2]
[373177069,1752891048679,-533.53,0.00018904,2]
[373177070,1752891048690,-552.61,0.00018904,2]
[373177071,1752891048699,-460.0,0.00018904,2]
[373177072,1752891048708,-467.12,0.00018904,2]
[373177073,1752891048717,-1676.17,0.00018904,2]
[373177074,1752891048726,-460.0,0.00018904,2]
[373177075,1752891048736,-460.0,0.00018904,2]
[373177076,1752891048745,-864.43,0.00018904,2]
[373177077,1752891048754,-460.0,0.00018904,2]
[373177078,1752891048763,-460.0,0.00018904,2]
[373177079,1752891048772,-1756.54,0.00018904,2]
[373177080,1752891048782,-460.0,0.00018904,2]
[373177081,1752891048791,-1166.67,0.00018904,2]
[373177082,1752891048800,-460.0,0.00018904,2]
[373177083,1752891048809,-460.0,0.00018904,2]
[373177084,1752891048819,-1238.02,0.00018904,2]
[373177085,1752891048827,-460.0,0.00018904,2]
[373177086,1752891048836,-460.0,0.00018904,2]
[373177087,1752891048845,-460.0,0.00018904,2]
[373177088,1752891048854,-460.0,0.00018904,2]
[373177089,1752891048864,-975.58,0.00018904,2]
[373177090,1752891048873,-684.43,0.00018904,2]
[373177091,1752891048882,-460.0,0.00018904,2]
[373177092,1752891048891,-460.0,0.00018904,2]
[373177093,1752891048907,-463.54,0.00018904,2]
[373177094,1752891048919,-460.0,0.00018904,2]
[373177095,1752891048928,-460.0,0.00018904,2]
[373177096,1752891048941,-1345.1,0.00018904,2]
[373177097,1752891048951,-1508.92,0.00018904,2]
[373177098,1752891048961,-460.0,0.00018904,2]
[373177099,1752891048971,-460.0,0.00018904,2]
[373177100,1752891048983,-460.0,0.00018904,2]
[373177102,1752891048992,-460.0,0.00018904,2]
[373177104,1752891049002,-1125.78,0.00018904,2]
[373177106,1752891049012,-1027.2,0.00018904,2]
[373177108,1752891049023,-460.0,0.00018904,2]
[373177110,1752891049033,-460.0,0.00018904,2]
[373177112,1752891049043,-460.0,0.00018904,2]
[373177114,1752891049053,-460.0,0.00018904,2]
[373177116,1752891049062,-460.0,0.00018904,2]
[373177118,1752891049072,-460.0,0.00018904,2]
[373177120,1752891049081,-3077.67,0.00018904,2]
[373177122,1752891049091,-660.48,0.00018904,2]
[373177124,1752891049101,-2276.00727322,0.00019072,2]
[373177126,1752891049111,-360.0,0.00019082,2]
[373177127,1752891049120,-460.0,0.00019178,2]
[373177128,1752891049130,-522.43,0.00019178,2]
[373177129,1752891049140,-460.0,0.00019178,2]
[373177130,1752891049149,-460.0,0.00019178,2]
[373177131,1752891049159,-447.635021,0.00019178,2]
[373177132,1752891049169,-460.0,0.00019178,2]
[373177133,1752891049178,-460.0,0.00019178,2]
[373177134,1752891049191,-460.0,0.00019178,2]
[373177135,1752891049201,-460.0,0.00019178,2]
[373177136,1752891049211,-460.0,0.00019178,2]
[373177137,1752891049221,-2770.43,0.00019178,2]
[373177138,1752891049230,-371.16320811,0.00019178,2]
[373177139,1752891049240,-1977.14,0.00019178,2]
[373177140,1752891049250,-460.0,0.00019178,2]
[373177141,1752891049260,-1102.41,0.00019178,2]
[373177142,1752891049270,-460.0,0.00019178,2]
[373177143,1752891049280,-533.53,0.00019178,2]
[373177144,1752891049290,-552.61,0.00019178,2]
[373177145,1752891049299,-460.0,0.00019178,2]
[373177146,1752891049486,-467.12,0.00019178,2]
[373177147,1752891049497,-1676.17,0.00019178,2]
[373177148,1752891049506,-460.0,0.00019178,2]
[373177149,1752891049516,-460.0,0.00019178,2]
[373177150,1752891049525,-864.43,0.00019178,2]
[373177151,1752891049534,-460.0,0.00019178,2]
[373177152,1752891049544,-460.0,0.00019178,2]
[373177153,1752891049553,-1756.54,0.00019178,2]
[373177154,1752891049562,-460.0,0.00019178,2]
[373177155,1752891049572,-1166.67,0.00019178,2]
[373177156,1752891049582,-460.0,0.00019178,2]
[373177157,1752891049591,-460.0,0.00019178,2]
[373177158,1752891049600,-1238.02,0.00019178,2]
[373177159,1752891049610,-460.0,0.00019178,2]
[373177160,1752891049619,-460.0,0.00019178,2]
[373177161,1752891049629,-460.0,0.00019178,2]
[373177162,1752891049639,-460.0,0.00019178,2]
[373177163,1752891049648,-975.58,0.00019178,2]
[373177164,1752891049658,-684.43,0.00019178,2]
[373177165,1752891049667,-460.0,0.00019178,2]
[373177166,1752891049676,-460.0,0.00019178,2]
[373177167,1752891049685,-463.54,0.00019178,2]
[373177168,1752891049695,-460.0,0.00019178,2]
[373177169,1752891049705,-460.0,0.00019178,2]
[373177170,1752891049715,-1345.1,0.00019178,2]
[373177171,1752891049725,-1508.92,0.00019178,2]
[373177172,1752891049734,-460.0,0.00019178,2]
[373177173,1752891049746,-460.0,0.00019178,2]
[373177174,1752891049756,-460.0,0.00019178,2]
[373177175,1752891049768,-460.0,0.00019178,2]
[373177176,1752891049777,-1125.78,0.00019178,2]
[373177177,1752891049788,-1027.2,0.00019178,2]
[373177178,1752891049798,-474.11255076,0.00019178,2]
[373177179,1752891049810,-460.0,0.00019178,2]
[373177180,1752891049820,-460.0,0.00019178,2]
[373177181,1752891049830,-460.0,0.00019178,2]
[373177182,1752891049842,-460.0,0.00019178,2]
[373177183,1752891049852,-460.0,0.00019178,2]
[373177184,1752891049862,-3077.67,0.00019178,2]
[373177185,1752891049872,-660.48,0.00019178,2]
[373177186,1752891049882,-171.15023,0.00019178,2]
[373177187,1752891049891,-5000.0,0.00019178,2]
[373177188,1752891049901,-800.0,0.00019186,2]
[373177189,1752891049910,-158.09469489,0.00019329,2]
[373177190,1752891049919,-2276.00727322,0.00019383,2]
[373177191,1752891049930,-460.0,0.00019452,2]
[373177192,1752891049945,-460.0,0.00019452,2]
[373177193,1752891049954,-321.29465641,0.00019452,2]
[373177194,1752891049964,-460.0,0.00019452,2]
[373177195,1752891049973,-460.0,0.00019452,2]
[373177196,1752891049984,-460.0,0.00019452,2]
[373177197,1752891049993,-460.0,0.00019452,2]
[373177198,1752891050005,-460.0,0.00019452,2]
[373177199,1752891050018,-2770.43,0.00019452,2]
[373177200,1752891050028,-1977.14,0.00019452,2]
[373177201,1752891050041,-460.0,0.00019452,2]
[373177202,1752891050052,-1102.41,0.00019452,2]
[373177203,1752891050063,-460.0,0.00019452,2]
[373177204,1752891050074,-533.53,0.00019452,2]
[373177205,1752891050086,-552.61,0.00019452,2]
[373177206,1752891050099,-166.64680206,0.00019452,2]
[373177207,1752891050109,-467.12,0.00019452,2]
[373177208,1752891050119,-1676.17,0.00019452,2]
[373177209,1752891050131,-460.0,0.00019452,2]
[373177210,1752891050142,-460.0,0.00019452,2]
[373177211,1752891050154,-864.43,0.00019452,2]
[373177212,1752891050164,-460.0,0.00019452,2]
[373177213,1752891050174,-460.0,0.00019452,2]
[373177214,1752891050186,-1756.54,0.00019452,2]
[373177215,1752891050195,-460.0,0.00019452,2]
[373177216,1752891050205,-1166.67,0.00019452,2]
[373177217,1752891050222,-460.0,0.00019452,2]
[373177218,1752891050244,-460.0,0.00019452,2]
[373177219,1752891050255,-460.0,0.00019452,2]
[373177220,1752891050265,-1238.02,0.00019452,2]
[373177221,1752891050276,-460.0,0.00019452,2]
[373177222,1752891050287,-460.0,0.00019452,2]
[373177223,1752891050298,-460.0,0.00019452,2]
[373177224,1752891050310,-975.58,0.00019452,2]
[373177225,1752891050321,-684.43,0.00019452,2]
[373177226,1752891050331,-460.0,0.00019452,2]
[373177227,1752891050340,-460.0,0.00019452,2]
[373177228,1752891050349,-463.54,0.00019452,2]
[373177229,1752891050359,-460.0,0.00019452,2]
[373177230,1752891050368,-460.0,0.00019452,2]
[373177231,1752891050378,-1345.1,0.00019452,2]
[373177232,1752891050387,-460.0,0.00019452,2]
[373177233,1752891050397,-1508.92,0.00019452,2]
[373177234,1752891050407,-460.0,0.00019452,2]
[373177235,1752891050417,-460.0,0.00019452,2]
[373177236,1752891050426,-460.0,0.00019452,2]
[373177237,1752891050437,-1125.78,0.00019452,2]
[373177238,1752891050446,-1027.2,0.00019452,2]
[373177239,1752891050456,-460.0,0.00019452,2]
[373177240,1752891050465,-460.0,0.00019452,2]
[373177241,1752891050475,-460.0,0.00019452,2]
[373177242,1752891050484,-460.0,0.00019452,2]
[373177243,1752891050494,-460.0,0.00019452,2]
[373177244,1752891050504,-3077.67,0.00019452,2]
[373177245,1752891050514,-660.48,0.00019452,2]
[373177246,1752891050524,-460.0,0.0001963,2]
[373177247,1752891050534,-2351.0,0.00019631,2]
[373177248,1752891050543,-587.0,0.00019631,2]
[373177249,1752891050553,-2276.00727322,0.00019693,2]
[373177250,1752891050562,-460.0,0.00019726,2]
[373177251,1752891050572,-460.0,0.00019726,2]
[373177252,1752891050582,-460.0,0.00019726,2]
[373177253,1752891050591,-460.0,0.00019726,2]
[373177254,1752891050601,-460.0,0.00019726,2]
[373177255,1752891050611,-460.0,0.00019726,2]
[373177256,1752891050621,-460.0,0.00019726,2]
[373177257,1752891050630,-2770.43,0.00019726,2]
[373177258,1752891050640,-1977.14,0.00019726,2]
[373177259,1752891050649,-460.0,0.00019726,2]
[373177260,1752891050659,-1102.41,0.00019726,2]
[373177261,1752891050668,-460.0,0.00019726,2]
[373177262,1752891050677,-533.53,0.00019726,2]
[373177263,1752891050687,-552.61,0.00019726,2]
[373177264,1752891050697,-467.12,0.00019726,2]
[373177265,1752891050707,-1676.17,0.00019726,2]
[373177266,1752891050719,-460.0,0.00019726,2]
[373177267,1752891050729,-864.43,0.00019726,2]
[373177268,1752891050738,-460.0,0.00019726,2]
[373177269,1752891050748,-460.0,0.00019726,2]
[373177270,1752891050757,-460.0,0.00019726,2]
[373177271,1752891050767,-1756.54,0.00019726,2]
[373177272,1752891050777,-460.0,0.00019726,2]
[373177273,1752891050786,-1166.67,0.00019726,2]
[373177274,1752891050796,-460.0,0.00019726,2]
[373177275,1752891050806,-460.0,0.00019726,2]
[373177276,1752891050816,-460.0,0.00019726,2]
[373177277,1752891050825,-1238.02,0.00019726,2]
[373177278,1752891050835,-281.75465443,0.00019726,2]
[373177279,1752891050845,-474.89216432,0.00019726,2]
[373177280,1752891050855,-460.0,0.00019726,2]
[373177281,1752891050865,-975.58,0.00019726,2]
[373177282,1752891050875,-684.43,0.00019726,2]
[373177283,1752891050884,-460.0,0.00019726,2]
[373177284,1752891050894,-460.0,0.00019726,2]
[373177285,1752891050904,-463.54,0.00019726,2]
[373177286,1752891050913,-460.0,0.00019726,2]
[373177287,1752891050926,-1345.1,0.00019726,2]
[373177288,1752891050936,-460.0,0.00019726,2]
[373177289,1752891050949,-1508.92,0.00019726,2]
[373177290,1752891050959,-460.0,0.00019726,2]
[373177291,1752891050970,-460.0,0.00019726,2]
[373177292,1752891050979,-460.0,0.00019726,2]
[373177293,1752891050990,-1125.78,0.00019726,2]
[373177294,1752891050999,-1027.2,0.00019726,2]
[373177295,1752891051009,-460.0,0.00019726,2]
[373177296,1752891051021,-460.0,0.00019726,2]
[373177297,1752891051030,-460.0,0.00019726,2]
[373177298,1752891051040,-460.0,0.00019726,2]
[373177299,1752891051049,-460.0,0.00019726,2]
[373177300,1752891051058,-3077.67,0.00019726,2]
[373177301,1752891051068,-660.48,0.00019726,2]
[373177302,1752891051078,-7356.9806417,0.00019802,2]
[373177303,1752891051087,-460.0,0.0002,2]
[373177304,1752891051096,-460.0,0.0002,2]
[373177305,1752891051106,-338.88346243,0.0002,2]
[373177306,1752891051115,-460.0,0.0002,2]
[373177307,1752891051125,-460.0,0.0002,2]
[373177308,1752891051134,-460.0,0.0002,2]
[373177309,1752891051144,-2770.43,0.0002,2]
[373177310,1752891051154,-1977.14,0.0002,2]
[373177311,1752891051165,-460.0,0.0002,2]
[373177312,1752891051175,-1102.41,0.0002,2]
[373177313,1752891051184,-460.0,0.0002,2]
[373177314,1752891051194,-533.53,0.0002,2]
[373177315,1752891051203,-552.61,0.0002,2]
[373177316,1752891051213,-467.12,0.0002,2]
[373177317,1752891051223,-1676.17,0.0002,2]
[373177318,1752891051233,-460.0,0.0002,2]
[373177319,1752891051242,-864.43,0.0002,2]
[373177320,1752891051253,-460.0,0.0002,2]
[373177321,1752891051262,-460.0,0.0002,2]
[373177322,1752891051272,-160.53531408,0.0002,2]
[373177323,1752891051282,-1756.54,0.0002,2]
[373177324,1752891051292,-460.0,0.0002,2]
[373177325,1752891051302,-1166.67,0.0002,2]
[373177326,1752891051312,-460.0,0.0002,2]
[373177327,1752891051322,-460.0,0.0002,2]
[373177328,1752891051332,-460.0,0.0002,2]
[373177329,1752891051342,-1238.02,0.0002,2]
[373177330,1752891051352,-211.3079855,0.0002,2]
[373177331,1752891051362,-975.58,0.0002,2]
[373177332,1752891051372,-684.43,0.0002,2]
[373177333,1752891051381,-460.0,0.0002,2]
[373177334,1752891051390,-460.0,0.0002,2]
[373177335,1752891051401,-463.54,0.0002,2]
[373177336,1752891051410,-460.0,0.0002,2]
[373177337,1752891051420,-1345.1,0.0002,2]
[373177338,1752891051430,-460.0,0.0002,2]
[373177339,1752891051444,-1508.92,0.0002,2]
[373177340,1752891051454,-460.0,0.0002,2]
[373177341,1752891051464,-460.0,0.0002,2]
[373177342,1752891051473,-460.0,0.0002,2]
[373177343,1752891051483,-1125.78,0.0002,2]
[373177344,1752891051493,-1027.2,0.0002,2]
[373177345,1752891051503,-460.0,0.0002,2]
[373177346,1752891051512,-560.4930551,0.0002,2]
[373177347,1752891051523,-460.0,0.0002,2]
[373177348,1752891051532,-460.0,0.0002,2]
[373177349,1752891051541,-477.7346262,0.0002,2]
[373177350,1752891051551,-3077.67,0.0002,2]
[373177351,1752891051560,-2276.00727322,0.00020003,2]
[373177352,1752891051569,-175.61,0.00020009,2]
[373177353,1752891051579,-203.428,0.00020009,2]
[373177354,1752891051588,-150.074,0.00020022,2]